[Event "Titled Tuesday Blitz November 14 Early 2023"]
[White "Ben Artzi, Ido"]
[Black "Djokic, Mihailo"]
[WhiteFideId "2810913"]
[BlackFideId "976440"]
[WhiteElo "2545"]
[BlackElo "2707"]
[Result "1-0"]
[Round "6"]
[TimeControl "180+1"]
[Date "2023.11.14"]
[WhiteClock "0:00:10"]
[BlackClock "0:00:01"]
[Board "66"]

1. e4 {[%clk 0:02:56]}  c5 {[%clk 0:03:00]} 2. Nf3 {[%clk 0:02:56]}  d6 {[%clk 0:03:00]} 3. d4 {[%clk 0:02:56]}  cxd4 {[%clk 0:03:01]} 4. Nxd4 {[%clk 0:02:57]}  Nf6 {[%clk 0:03:02]} 5. Nc3 {[%clk 0:02:58]}  g6 {[%clk 0:03:02]} 6. f3 {[%clk 0:02:57]}  Bg7 {[%clk 0:03:03]} 7. Be3 {[%clk 0:02:57]}  O-O {[%clk 0:03:03]} 8. Bc4 {[%clk 0:02:57]}  Nc6 {[%clk 0:03:04]} 9. O-O {[%clk 0:02:57]}  Bd7 {[%clk 0:03:05]} 10. Qd2 {[%clk 0:02:57]}  Rc8 {[%clk 0:03:05]} 11. Bb3 {[%clk 0:02:58]}  Ne5 {[%clk 0:03:06]} 12. Rad1 {[%clk 0:02:57]}  Nc4 {[%clk 0:03:03]} 13. Bxc4 {[%clk 0:02:57]}  Rxc4 {[%clk 0:03:04]} 14. Nb3 {[%clk 0:02:56]}  a6 {[%clk 0:02:59]} 15. Bd4 {[%clk 0:02:43]}  Be6 {[%clk 0:02:52]} 16. Ne2 {[%clk 0:02:12]}  Qc7 {[%clk 0:02:46]} 17. c3 {[%clk 0:02:10]}  Ra4 {[%clk 0:02:46]} 18. Ra1 {[%clk 0:02:04]}  Bc4 {[%clk 0:02:46]} 19. Rfe1 {[%clk 0:02:01]}  Rc8 {[%clk 0:02:44]} 20. Be3 {[%clk 0:01:52]}  b5 {[%clk 0:02:37]} 21. Nbc1 {[%clk 0:01:50]}  Bxe2 {[%clk 0:02:25]} 22. Nxe2 {[%clk 0:01:48]}  b4 {[%clk 0:02:25]} 23. cxb4 {[%clk 0:01:44]}  Qb7 {[%clk 0:02:24]} 24. a3 {[%clk 0:01:40]}  Nd7 {[%clk 0:02:15]} 25. b3 {[%clk 0:01:35]}  Bxa1 {[%clk 0:02:09]} 26. Rxa1 {[%clk 0:01:36]}  Ne5 {[%clk 0:01:55]} 27. bxa4 {[%clk 0:01:32]}  Nc4 {[%clk 0:01:55]} 28. Qd3 {[%clk 0:01:29]}  Nb2 {[%clk 0:01:54]} 29. Qb3 {[%clk 0:01:27]}  Nc4 {[%clk 0:01:54]} 30. Rc1 {[%clk 0:01:20]}  d5 {[%clk 0:01:54]} 31. exd5 {[%clk 0:01:16]}  Qxd5 {[%clk 0:01:54]} 32. Nf4 {[%clk 0:01:14]}  Qe5 {[%clk 0:01:50]} 33. Bd2 {[%clk 0:00:56]}  Qd4+ {[%clk 0:01:47]} 34. Be3 {[%clk 0:00:51]}  Qe5 {[%clk 0:01:36]} 35. Rxc4 {[%clk 0:00:35]}  Rxc4 {[%clk 0:01:29]} 36. Qxc4 {[%clk 0:00:36]}  Qxe3+ {[%clk 0:01:29]} 37. Kf1 {[%clk 0:00:36]}  Qxa3 {[%clk 0:01:27]} 38. a5 {[%clk 0:00:33]}  Kg7 {[%clk 0:01:16]} 39. Nd5 {[%clk 0:00:31]}  e5 {[%clk 0:01:03]} 40. Qc3 {[%clk 0:00:26]}  Qa2 {[%clk 0:00:59]} 41. Qxe5+ {[%clk 0:00:26]}  Kh6 {[%clk 0:00:59]} 42. Qe3+ {[%clk 0:00:25]}  Kg7 {[%clk 0:00:59]} 43. Qd3 {[%clk 0:00:25]}  Kh6 {[%clk 0:00:55]} 44. Nc3 {[%clk 0:00:20]}  Qa3 {[%clk 0:00:51]} 45. Qe3+ {[%clk 0:00:18]}  Kg7 {[%clk 0:00:51]} 46. Nd5 {[%clk 0:00:17]}  Qa2 {[%clk 0:00:47]} 47. Qd4+ {[%clk 0:00:16]}  Kh6 {[%clk 0:00:47]} 48. h4 {[%clk 0:00:16]}  f5 {[%clk 0:00:38]} 49. Ne7 {[%clk 0:00:14]}  Qe6 {[%clk 0:00:31]} 50. Qc5 {[%clk 0:00:12]}  Qb3 {[%clk 0:00:27]} 51. Kf2 {[%clk 0:00:11]}  Qb1 {[%clk 0:00:21]} 52. Qe3+ {[%clk 0:00:11]}  Kg7 {[%clk 0:00:21]} 53. Qe5+ {[%clk 0:00:10]}  Kf7 {[%clk 0:00:22]} 54. Nd5 {[%clk 0:00:10]}  Qc2+ {[%clk 0:00:13]} 55. Kg3 {[%clk 0:00:10]}  f4+ {[%clk 0:00:08]} 56. Kh2 {[%clk 0:00:10]}  Qf5 {[%clk 0:00:01]} 57. Qe7+ {[%clk 0:00:09]}  Kg8 {[%clk 0:00:01]} 58. Nf6+ {[%clk 0:00:10]}  Qxf6 {[%clk 0:00:01]} 59. Qxf6 {[%clk 0:00:10]} 1-0


[Site "https://www.chess.com"]

[Event "Titled Tuesday Blitz November 14 Early 2023"]
[White "Yaksin, Oleg"]
[Black "Danielyan, Vahe"]
[WhiteFideId "24105880"]
[BlackFideId "13304828"]
[WhiteElo "2541"]
[BlackElo "2700"]
[Result "1/2-1/2"]
[Round "6"]
[TimeControl "180+1"]
[Date "2023.11.14"]
[WhiteClock "0:00:07"]
[BlackClock "0:00:02"]
[Board "67"]

1. d4 {[%clk 0:03:00]}  Nf6 {[%clk 0:02:59]} 2. c4 {[%clk 0:02:59]}  g6 {[%clk 0:02:59]} 3. Nf3 {[%clk 0:03:00]}  Bg7 {[%clk 0:03:00]} 4. g3 {[%clk 0:03:00]}  O-O {[%clk 0:03:00]} 5. Bg2 {[%clk 0:03:01]}  d6 {[%clk 0:03:01]} 6. O-O {[%clk 0:03:02]}  c6 {[%clk 0:03:00]} 7. Nc3 {[%clk 0:03:02]}  Bf5 {[%clk 0:02:59]} 8. Ne1 {[%clk 0:03:02]}  e5 {[%clk 0:02:51]} 9. d5 {[%clk 0:03:01]}  c5 {[%clk 0:02:51]} 10. e4 {[%clk 0:03:01]}  Bg4 {[%clk 0:02:50]} 11. f3 {[%clk 0:03:01]}  Bd7 {[%clk 0:02:50]} 12. Nd3 {[%clk 0:02:59]}  Na6 {[%clk 0:02:50]} 13. f4 {[%clk 0:02:52]}  exf4 {[%clk 0:02:49]} 14. Bxf4 {[%clk 0:02:52]}  Qe7 {[%clk 0:02:42]} 15. e5 {[%clk 0:02:07]}  dxe5 {[%clk 0:02:42]} 16. Bxe5 {[%clk 0:02:08]}  Ng4 {[%clk 0:02:34]} 17. Bxg7 {[%clk 0:01:57]}  Kxg7 {[%clk 0:02:35]} 18. Re1 {[%clk 0:01:55]}  Qf6 {[%clk 0:02:32]} 19. Nf4 {[%clk 0:01:43]}  Rae8 {[%clk 0:02:27]} 20. Qd2 {[%clk 0:01:39]}  Qd4+ {[%clk 0:02:11]} 21. Qxd4+ {[%clk 0:01:38]}  cxd4 {[%clk 0:02:11]} 22. Ne4 {[%clk 0:01:37]}  Ne3 {[%clk 0:02:07]} 23. Nd6 {[%clk 0:01:34]}  Rb8 {[%clk 0:01:58]} 24. Re2 {[%clk 0:01:14]}  b5 {[%clk 0:01:51]} 25. cxb5 {[%clk 0:01:03]}  Bxb5 {[%clk 0:01:52]} 26. Nxb5 {[%clk 0:01:03]}  Rxb5 {[%clk 0:01:52]} 27. Rd2 {[%clk 0:01:03]}  g5 {[%clk 0:01:12]} 28. Ne2 {[%clk 0:01:02]}  d3 {[%clk 0:01:12]} 29. Nc3 {[%clk 0:00:51]}  Rb6 {[%clk 0:01:02]} 30. Be4 {[%clk 0:00:50]}  Nc4 {[%clk 0:00:48]} 31. Rxd3 {[%clk 0:00:47]}  Rxb2 {[%clk 0:00:49]} 32. Rd4 {[%clk 0:00:26]}  Nd6 {[%clk 0:00:36]} 33. Bf3 {[%clk 0:00:20]}  Nb4 {[%clk 0:00:26]} 34. Rb1 {[%clk 0:00:09]}  Rxb1+ {[%clk 0:00:22]} 35. Nxb1 {[%clk 0:00:10]}  Rb8 {[%clk 0:00:16]} 36. Nc3 {[%clk 0:00:08]}  a5 {[%clk 0:00:14]} 37. h4 {[%clk 0:00:07]}  h6 {[%clk 0:00:11]} 38. hxg5 {[%clk 0:00:07]}  hxg5 {[%clk 0:00:12]} 39. g4 {[%clk 0:00:07]}  Rc8 {[%clk 0:00:12]} 40. Ne4 {[%clk 0:00:07]}  Rc1+ {[%clk 0:00:12]} 41. Kg2 {[%clk 0:00:07]}  Rc2+ {[%clk 0:00:12]} 42. Kg3 {[%clk 0:00:07]}  Nb5 {[%clk 0:00:09]} 43. Rd2 {[%clk 0:00:06]}  Rxd2 {[%clk 0:00:09]} 44. Nxd2 {[%clk 0:00:07]}  Nxa2 {[%clk 0:00:10]} 45. Nc4 {[%clk 0:00:06]}  a4 {[%clk 0:00:09]} 46. d6 {[%clk 0:00:06]}  Kf8 {[%clk 0:00:09]} 47. Bc6 {[%clk 0:00:07]}  Nd4 {[%clk 0:00:09]} 48. Bd5 {[%clk 0:00:06]}  Nc3 {[%clk 0:00:08]} 49. Bb7 {[%clk 0:00:04]}  Ncb5 {[%clk 0:00:09]} 50. d7 {[%clk 0:00:04]}  Ke7 {[%clk 0:00:09]} 51. Ne5 {[%clk 0:00:05]}  a3 {[%clk 0:00:06]} 52. Bd5 {[%clk 0:00:04]}  Nc7 {[%clk 0:00:05]} 53. Ba2 {[%clk 0:00:03]}  Nce6 {[%clk 0:00:05]} 54. Nxf7 {[%clk 0:00:03]}  Kxd7 {[%clk 0:00:04]} 55. Ne5+ {[%clk 0:00:04]}  Kd6 {[%clk 0:00:04]} 56. Nc4+ {[%clk 0:00:05]}  Kc5 {[%clk 0:00:04]} 57. Nxa3 {[%clk 0:00:05]}  Ne2+ {[%clk 0:00:04]} 58. Kf3 {[%clk 0:00:05]}  N6d4+ {[%clk 0:00:05]} 59. Ke3 {[%clk 0:00:05]}  Nc3 {[%clk 0:00:05]} 60. Nc4 {[%clk 0:00:05]}  Nxa2 {[%clk 0:00:05]} 61. Ne5 {[%clk 0:00:06]}  Nc3 {[%clk 0:00:03]} 62. Nf7 {[%clk 0:00:06]}  Nd5+ {[%clk 0:00:03]} 63. Ke4 {[%clk 0:00:07]}  Ne6 {[%clk 0:00:04]} 64. Kf5 {[%clk 0:00:06]}  Ndf4 {[%clk 0:00:02]} 65. Nxg5 {[%clk 0:00:06]}  Nxg5 {[%clk 0:00:02]} 66. Kxg5 {[%clk 0:00:06]}  Kd5 {[%clk 0:00:03]} 67. Kf5 {[%clk 0:00:07]}  Nh3 {[%clk 0:00:02]} 68. Kf6 {[%clk 0:00:06]}  Ke4 {[%clk 0:00:01]} 69. g5 {[%clk 0:00:07]}  Nxg5 {[%clk 0:00:02]} 1/2-1/2


[Site "https://www.chess.com"]

[Event "Titled Tuesday Blitz November 14 Early 2023"]
[White "vishwa_vijeta"]
[Black "Akhmedinov, Satbek"]
[BlackFideId "13714287"]
[WhiteElo "2536"]
[BlackElo "2682"]
[Result "0-1"]
[Round "6"]
[TimeControl "180+1"]
[Date "2023.11.14"]
[WhiteClock "0:01:34"]
[BlackClock "0:02:38"]
[Board "70"]

1. e4 {[%clk 0:03:00]}  c5 {[%clk 0:03:00]} 2. Nf3 {[%clk 0:03:00]}  Nc6 {[%clk 0:02:59]} 3. d4 {[%clk 0:02:58]}  cxd4 {[%clk 0:02:59]} 4. Nxd4 {[%clk 0:02:59]}  Nf6 {[%clk 0:03:00]} 5. Nc3 {[%clk 0:02:59]}  e5 {[%clk 0:03:00]} 6. Ndb5 {[%clk 0:03:00]}  d6 {[%clk 0:03:00]} 7. Bg5 {[%clk 0:03:00]}  a6 {[%clk 0:03:00]} 8. Na3 {[%clk 0:02:56]}  b5 {[%clk 0:03:00]} 9. Bxf6 {[%clk 0:02:46]}  gxf6 {[%clk 0:03:01]} 10. Nd5 {[%clk 0:02:46]}  f5 {[%clk 0:03:01]} 11. exf5 {[%clk 0:02:39]}  Bxf5 {[%clk 0:03:00]} 12. Qf3 {[%clk 0:02:39]}  Nd4 {[%clk 0:03:00]} 13. Nc7+ {[%clk 0:02:39]}  Qxc7 {[%clk 0:03:00]} 14. Qxa8+ {[%clk 0:02:39]}  Ke7 {[%clk 0:03:01]} 15. c3 {[%clk 0:02:36]}  b4 {[%clk 0:03:01]} 16. cxd4 {[%clk 0:02:11]}  bxa3 {[%clk 0:03:00]} 17. dxe5 {[%clk 0:02:03]}  axb2 {[%clk 0:02:45]} 18. exd6+ {[%clk 0:02:03]}  Kf6 {[%clk 0:02:46]} 19. Rd1 {[%clk 0:01:53]}  Qc3+ {[%clk 0:02:37]} 20. Ke2 {[%clk 0:01:52]}  Qc2+ {[%clk 0:02:38]} 21. Rd2 {[%clk 0:01:40]}  Qxd2+ {[%clk 0:02:37]} 22. Kxd2 {[%clk 0:01:34]}  Bh6+ {[%clk 0:02:38]} 0-1


[Site "https://www.chess.com"]

[Event "Titled Tuesday Blitz November 14 Early 2023"]
[White "Mladenovic, Stefan"]
[Black "Molenda, Marcin"]
[WhiteFideId "942227"]
[BlackFideId "1173065"]
[WhiteElo "2682"]
[BlackElo "2532"]
[Result "1-0"]
[Round "6"]
[TimeControl "180+1"]
[Date "2023.11.14"]
[WhiteClock "0:00:38"]
[BlackClock "0:00:00"]
[Board "71"]

1. d4 {[%clk 0:03:00]}  d5 {[%clk 0:02:55]} 2. c4 {[%clk 0:02:59]}  c6 {[%clk 0:02:56]} 3. Nf3 {[%clk 0:02:58]}  Nf6 {[%clk 0:02:56]} 4. e3 {[%clk 0:02:59]}  e6 {[%clk 0:02:56]} 5. b3 {[%clk 0:02:58]}  Ne4 {[%clk 0:02:56]} 6. Bd3 {[%clk 0:02:57]}  Bb4+ {[%clk 0:02:54]} 7. Nbd2 {[%clk 0:02:56]}  f5 {[%clk 0:02:43]} 8. O-O {[%clk 0:02:56]}  Qf6 {[%clk 0:02:43]} 9. Ne5 {[%clk 0:02:37]}  Nd7 {[%clk 0:02:35]} 10. Nxd7 {[%clk 0:02:33]}  Bxd7 {[%clk 0:02:35]} 11. f3 {[%clk 0:02:22]}  Nxd2 {[%clk 0:02:14]} 12. Bxd2 {[%clk 0:02:23]}  Bxd2 {[%clk 0:02:10]} 13. Qxd2 {[%clk 0:02:24]}  O-O {[%clk 0:02:10]} 14. Bc2 {[%clk 0:02:16]}  Rad8 {[%clk 0:02:03]} 15. e4 {[%clk 0:02:05]}  dxc4 {[%clk 0:01:56]} 16. bxc4 {[%clk 0:02:03]}  e5 {[%clk 0:01:56]} 17. d5 {[%clk 0:01:59]}  c5 {[%clk 0:01:33]} 18. Rab1 {[%clk 0:01:53]}  b6 {[%clk 0:01:30]} 19. a4 {[%clk 0:01:47]}  f4 {[%clk 0:01:24]} 20. a5 {[%clk 0:01:46]}  Rb8 {[%clk 0:01:24]} 21. axb6 {[%clk 0:01:45]}  axb6 {[%clk 0:01:20]} 22. Qc3 {[%clk 0:01:44]}  Ra8 {[%clk 0:01:15]} 23. Rb2 {[%clk 0:01:38]}  Ra6 {[%clk 0:01:10]} 24. Rfb1 {[%clk 0:01:38]}  Rfa8 {[%clk 0:01:09]} 25. Rb3 {[%clk 0:01:30]}  h5 {[%clk 0:01:00]} 26. Qb2 {[%clk 0:01:12]}  Ra2 {[%clk 0:00:55]} 27. Qc3 {[%clk 0:01:08]}  R8a6 {[%clk 0:00:53]} 28. R3b2 {[%clk 0:01:01]}  R2a3 {[%clk 0:00:51]} 29. Rb3 {[%clk 0:00:59]}  R3a5 {[%clk 0:00:40]} 30. Rxb6 {[%clk 0:00:47]}  Rxb6 {[%clk 0:00:18]} 31. Qxa5 {[%clk 0:00:46]}  Rxb1+ {[%clk 0:00:17]} 32. Bxb1 {[%clk 0:00:46]}  Qd6 {[%clk 0:00:17]} 33. Qd8+ {[%clk 0:00:43]}  Kh7 {[%clk 0:00:17]} 34. Bc2 {[%clk 0:00:43]}  Qa6 {[%clk 0:00:02]} 35. Qxd7 {[%clk 0:00:38]}  Qa1+ {[%clk 0:00:00]} 36. Kf2 {[%clk 0:00:38]} 1-0


[Site "https://www.chess.com"]

[Event "Titled Tuesday Blitz November 14 Early 2023"]
[White "Manukian, Artak"]
[Black "Ovetchkin, Roman"]
[WhiteFideId "13301373"]
[BlackFideId "4119991"]
[WhiteElo "2530"]
[BlackElo "2665"]
[Result "0-1"]
[Round "6"]
[TimeControl "180+1"]
[Date "2023.11.14"]
[WhiteClock "0:00:06"]
[BlackClock "0:00:28"]
[Board "73"]

1. e4 {[%clk 0:03:00]}  c6 {[%clk 0:02:59]} 2. d4 {[%clk 0:02:59]}  d5 {[%clk 0:03:00]} 3. e5 {[%clk 0:02:57]}  Bf5 {[%clk 0:03:00]} 4. c4 {[%clk 0:02:55]}  e6 {[%clk 0:02:59]} 5. Nc3 {[%clk 0:02:53]}  Ne7 {[%clk 0:02:57]} 6. Nf3 {[%clk 0:02:52]}  Nd7 {[%clk 0:02:55]} 7. Nh4 {[%clk 0:02:49]}  dxc4 {[%clk 0:02:52]} 8. Bxc4 {[%clk 0:02:48]}  Nb6 {[%clk 0:02:51]} 9. Bb3 {[%clk 0:02:49]}  h6 {[%clk 0:02:48]} 10. Nxf5 {[%clk 0:02:32]}  Nxf5 {[%clk 0:02:47]} 11. Be3 {[%clk 0:02:33]}  Qh4 {[%clk 0:02:42]} 12. O-O {[%clk 0:02:29]}  O-O-O {[%clk 0:02:39]} 13. g3 {[%clk 0:02:07]}  Qe7 {[%clk 0:02:12]} 14. a4 {[%clk 0:01:57]}  a5 {[%clk 0:02:07]} 15. Rc1 {[%clk 0:01:46]}  Kb8 {[%clk 0:02:07]} 16. Ne4 {[%clk 0:01:38]}  Qb4 {[%clk 0:01:43]} 17. Bd2 {[%clk 0:01:19]}  Qxd4 {[%clk 0:01:39]} 18. Bxa5 {[%clk 0:01:20]}  Ka7 {[%clk 0:01:22]} 19. Bc3 {[%clk 0:01:10]}  Qxd1 {[%clk 0:01:13]} 20. Rfxd1 {[%clk 0:01:11]}  Rxd1+ {[%clk 0:01:09]} 21. Rxd1 {[%clk 0:01:08]}  Nd5 {[%clk 0:01:09]} 22. Bxd5 {[%clk 0:00:59]}  exd5 {[%clk 0:01:04]} 23. Nd6 {[%clk 0:01:00]}  Bxd6 {[%clk 0:00:56]} 24. exd6 {[%clk 0:01:01]}  f6 {[%clk 0:00:56]} 25. Bb4 {[%clk 0:00:57]}  Rd8 {[%clk 0:00:56]} 26. a5 {[%clk 0:00:54]}  Nxd6 {[%clk 0:00:55]} 27. Bc5+ {[%clk 0:00:52]}  Ka6 {[%clk 0:00:55]} 28. b4 {[%clk 0:00:53]}  Ne4 {[%clk 0:00:55]} 29. Bd4 {[%clk 0:00:49]}  Kb5 {[%clk 0:00:53]} 30. f3 {[%clk 0:00:49]}  Nd6 {[%clk 0:00:53]} 31. Bc5 {[%clk 0:00:37]}  Nc4 {[%clk 0:00:51]} 32. Re1 {[%clk 0:00:32]}  d4 {[%clk 0:00:41]} 33. Rd1 {[%clk 0:00:20]}  d3 {[%clk 0:00:38]} 34. Kf2 {[%clk 0:00:19]}  Nxa5 {[%clk 0:00:33]} 35. Be7 {[%clk 0:00:15]}  Rd7 {[%clk 0:00:33]} 36. bxa5 {[%clk 0:00:15]}  Rxe7 {[%clk 0:00:33]} 37. Rxd3 {[%clk 0:00:15]}  Kxa5 {[%clk 0:00:33]} 38. h4 {[%clk 0:00:11]}  b5 {[%clk 0:00:32]} 39. Rd8 {[%clk 0:00:11]}  c5 {[%clk 0:00:32]} 40. g4 {[%clk 0:00:07]}  c4 {[%clk 0:00:31]} 41. Rb8 {[%clk 0:00:07]}  c3 {[%clk 0:00:30]} 42. h5 {[%clk 0:00:06]}  b4 {[%clk 0:00:28]} 0-1


[Site "https://www.chess.com"]

[Event "Titled Tuesday Blitz November 14 Early 2023"]
[White "Yen, William"]
[Black "Toktomushev, Teimur"]
[WhiteFideId "30932025"]
[BlackFideId "14176726"]
[WhiteElo "2661"]
[BlackElo "2523"]
[Result "0-1"]
[Round "6"]
[TimeControl "180+1"]
[Date "2023.11.14"]
[WhiteClock "0:01:23"]
[BlackClock "0:00:02"]
[Board "77"]

1. e4 {[%clk 0:02:58]}  c5 {[%clk 0:02:59]} 2. Nf3 {[%clk 0:02:58]}  e6 {[%clk 0:03:00]} 3. d4 {[%clk 0:02:55]}  cxd4 {[%clk 0:03:01]} 4. Nxd4 {[%clk 0:02:55]}  a6 {[%clk 0:03:01]} 5. Nc3 {[%clk 0:02:54]}  b5 {[%clk 0:03:01]} 6. Bd3 {[%clk 0:02:52]}  Bb7 {[%clk 0:03:02]} 7. O-O {[%clk 0:02:51]}  Nc6 {[%clk 0:03:02]} 8. Nxc6 {[%clk 0:02:39]}  Bxc6 {[%clk 0:03:02]} 9. Qe2 {[%clk 0:02:40]}  Qb8 {[%clk 0:02:16]} 10. f4 {[%clk 0:02:30]}  Nf6 {[%clk 0:01:47]} 11. a3 {[%clk 0:02:27]}  b4 {[%clk 0:01:16]} 12. axb4 {[%clk 0:02:26]}  Bxb4 {[%clk 0:01:17]} 13. e5 {[%clk 0:02:21]}  Nd5 {[%clk 0:00:30]} 14. Ne4 {[%clk 0:02:20]}  f5 {[%clk 0:00:11]} 15. exf6 {[%clk 0:02:16]}  Nxf6 {[%clk 0:00:10]} 16. Nxf6+ {[%clk 0:02:17]}  gxf6 {[%clk 0:00:11]} 17. Qh5+ {[%clk 0:02:14]}  Ke7 {[%clk 0:00:11]} 18. f5 {[%clk 0:02:09]}  Qb6+ {[%clk 0:00:07]} 19. Kh1 {[%clk 0:02:07]}  Rag8 {[%clk 0:00:05]} 20. Rg1 {[%clk 0:01:53]}  Qf2 {[%clk 0:00:03]} 21. Qh3 {[%clk 0:01:44]}  Bxg2+ {[%clk 0:00:02]} 22. Qxg2 {[%clk 0:01:40]}  Rxg2 {[%clk 0:00:02]} 23. Rxg2 {[%clk 0:01:41]}  Qe1+ {[%clk 0:00:02]} 24. Rg1 {[%clk 0:01:40]}  Qe5 {[%clk 0:00:02]} 25. fxe6 {[%clk 0:01:35]}  Qd5+ {[%clk 0:00:02]} 26. Rg2 {[%clk 0:01:33]}  Rg8 {[%clk 0:00:03]} 27. Bf1 {[%clk 0:01:25]}  Rxg2 {[%clk 0:00:02]} 28. Bxg2 {[%clk 0:01:23]}  Qd1+ {[%clk 0:00:02]} 0-1


[Site "https://www.chess.com"]

[Event "Titled Tuesday Blitz November 14 Early 2023"]
[White "Omariev, Maksim"]
[Black "Makhnev, Denis"]
[WhiteFideId "4193423"]
[BlackFideId "13707647"]
[WhiteElo "2488"]
[BlackElo "2648"]
[Result "0-1"]
[Round "6"]
[TimeControl "180+1"]
[Date "2023.11.14"]
[WhiteClock "0:00:00"]
[BlackClock "0:00:12"]
[Board "80"]

1. g4 {[%clk 0:03:00]}  e6 {[%clk 0:02:56]} 2. Bg2 {[%clk 0:02:58]}  h5 {[%clk 0:02:56]} 3. gxh5 {[%clk 0:02:55]}  Nf6 {[%clk 0:02:56]} 4. d4 {[%clk 0:02:54]}  d5 {[%clk 0:02:52]} 5. c4 {[%clk 0:02:50]}  dxc4 {[%clk 0:02:44]} 6. Nc3 {[%clk 0:02:24]}  Nc6 {[%clk 0:02:39]} 7. Nf3 {[%clk 0:02:23]}  Rxh5 {[%clk 0:02:35]} 8. Bf4 {[%clk 0:01:42]}  Bb4 {[%clk 0:02:24]} 9. Rc1 {[%clk 0:01:35]}  Rb8 {[%clk 0:01:57]} 10. a4 {[%clk 0:01:09]}  Bd6 {[%clk 0:01:49]} 11. Bg3 {[%clk 0:01:01]}  e5 {[%clk 0:01:43]} 12. d5 {[%clk 0:00:36]}  Na5 {[%clk 0:01:39]} 13. O-O {[%clk 0:00:35]}  Bh3 {[%clk 0:01:36]} 14. Nb5 {[%clk 0:00:34]}  Bxg2 {[%clk 0:01:29]} 15. Kxg2 {[%clk 0:00:34]}  Qd7 {[%clk 0:01:29]} 16. Ng1 {[%clk 0:00:12]}  a6 {[%clk 0:01:07]} 17. Nc3 {[%clk 0:00:07]}  Nb3 {[%clk 0:01:02]} 18. Rc2 {[%clk 0:00:06]}  b5 {[%clk 0:01:00]} 19. axb5 {[%clk 0:00:06]}  axb5 {[%clk 0:01:01]} 20. e3 {[%clk 0:00:05]}  Qf5 {[%clk 0:00:44]} 21. Re2 {[%clk 0:00:03]}  Qd3 {[%clk 0:00:37]} 22. Qe1 {[%clk 0:00:03]}  b4 {[%clk 0:00:34]} 23. Nd1 {[%clk 0:00:02]}  Qxd5+ {[%clk 0:00:30]} 24. e4 {[%clk 0:00:02]}  Qd3 {[%clk 0:00:28]} 25. f3 {[%clk 0:00:03]}  Nd4 {[%clk 0:00:25]} 26. Rd2 {[%clk 0:00:03]}  Qb3 {[%clk 0:00:25]} 27. Ne3 {[%clk 0:00:03]}  g6 {[%clk 0:00:22]} 28. Rff2 {[%clk 0:00:02]}  Kf8 {[%clk 0:00:20]} 29. Ne2 {[%clk 0:00:03]}  Nxe2 {[%clk 0:00:18]} 30. Qxe2 {[%clk 0:00:03]}  c3 {[%clk 0:00:18]} 31. bxc3 {[%clk 0:00:04]}  bxc3 {[%clk 0:00:19]} 32. Rc2 {[%clk 0:00:05]}  Kg7 {[%clk 0:00:19]} 33. Qd3 {[%clk 0:00:05]}  Bc5 {[%clk 0:00:18]} 34. Rxc3 {[%clk 0:00:05]}  Qb5 {[%clk 0:00:17]} 35. Qc2 {[%clk 0:00:06]}  Bxe3 {[%clk 0:00:16]} 36. Rxe3 {[%clk 0:00:06]}  Qd7 {[%clk 0:00:15]} 37. Rd3 {[%clk 0:00:07]}  Qh3+ {[%clk 0:00:15]} 38. Kg1 {[%clk 0:00:06]}  Ra8 {[%clk 0:00:15]} 39. Rd1 {[%clk 0:00:06]}  Qe6 {[%clk 0:00:14]} 40. Qxc7 {[%clk 0:00:06]}  Ra2 {[%clk 0:00:11]} 41. Rxa2 {[%clk 0:00:04]}  Qxa2 {[%clk 0:00:12]} 42. Qxe5 {[%clk 0:00:04]}  Rxe5 {[%clk 0:00:11]} 43. Bxe5 {[%clk 0:00:05]}  Qe2 {[%clk 0:00:11]} 44. Rf1 {[%clk 0:00:05]}  Qe3+ {[%clk 0:00:11]} 45. Kg2 {[%clk 0:00:05]}  Qg5+ {[%clk 0:00:12]} 46. Bg3 {[%clk 0:00:04]}  Nh5 {[%clk 0:00:13]} 47. f4 {[%clk 0:00:05]}  Qg4 {[%clk 0:00:13]} 48. e5 {[%clk 0:00:05]}  Qe2+ {[%clk 0:00:12]} 49. Rf2 {[%clk 0:00:05]}  Qe4+ {[%clk 0:00:13]} 50. Kg1 {[%clk 0:00:06]}  Nxg3 {[%clk 0:00:13]} 51. hxg3 {[%clk 0:00:06]}  g5 {[%clk 0:00:13]} 52. Kh2 {[%clk 0:00:06]}  g4 {[%clk 0:00:13]} 53. Kg1 {[%clk 0:00:05]}  Kg6 {[%clk 0:00:13]} 54. Kh2 {[%clk 0:00:05]}  Kf5 {[%clk 0:00:13]} 55. Kg1 {[%clk 0:00:05]}  Qe1+ {[%clk 0:00:13]} 56. Kg2 {[%clk 0:00:06]}  Ke4 {[%clk 0:00:13]} 57. Rf1 {[%clk 0:00:03]}  Qe2+ {[%clk 0:00:13]} 58. Rf2 {[%clk 0:00:04]}  Qd1 {[%clk 0:00:14]} 59. Rf1 {[%clk 0:00:03]}  Qd3 {[%clk 0:00:14]} 60. Rf2 {[%clk 0:00:03]}  Kf5 {[%clk 0:00:14]} 61. Rf1 {[%clk 0:00:04]}  Qe3 {[%clk 0:00:14]} 62. Rf2 {[%clk 0:00:04]}  Qd3 {[%clk 0:00:14]} 63. Rf1 {[%clk 0:00:05]}  Qc2+ {[%clk 0:00:14]} 64. Rf2 {[%clk 0:00:05]}  Qc6+ {[%clk 0:00:14]} 65. Kg1 {[%clk 0:00:05]}  Qa8 {[%clk 0:00:13]} 66. Kh2 {[%clk 0:00:05]}  Qh8+ {[%clk 0:00:13]} 67. Kg2 {[%clk 0:00:06]}  Qh3+ {[%clk 0:00:12]} 68. Kg1 {[%clk 0:00:03]}  Qxg3+ {[%clk 0:00:13]} 69. Kf1 {[%clk 0:00:00]}  Qxf4 {[%clk 0:00:12]} 0-1


[Site "https://www.chess.com"]